bitfinex/quotes_BTCUSD_20220303
["timestamp","ask_amount","ask_price","bid_price","bid_amount"]
[1646348023511,0.29196112,42530.0,42528.0,0.11767099]
[1646348024513,0.29196112,42529.0,42528.0,0.11767099]
[1646348024713,0.29196112,42529.0,42528.0,0.47662099]
[1646348025614,0.29196112,42529.0,42528.0,0.47596965]
[1646348028562,0.006,42534.0,42528.0,0.47596965]
[1646348028563,0.34138463,42530.0,42528.0,0.47596965]
[1646348028764,0.29277685,42529.0,42528.0,0.11701965]
[1646348028963,0.29277685,42529.0,42528.0,0.47596965]
[1646348029562,0.34138463,42531.0,42528.0,0.47596965]
[1646348029763,0.34138463,42531.0,42528.0,0.11701965]
[1646348029964,0.34138463,42531.0,42529.0,0.35895]
[1646348031319,0.34138463,42531.0,42529.0,0.27617337]
[1646348032119,0.34138463,42531.0,42530.0,0.35895]
[1646348032320,0.34138463,42531.0,42529.0,0.358947]
[1646348032719,0.34138463,42531.0,42528.0,0.11701965]
[1646348034468,0.34138463,42531.0,42528.0,0.11801965]
[1646348035668,0.34138463,42530.0,42528.0,0.11701965]
[1646348035869,0.34138463,42530.0,42529.0,0.358947]
[1646348039310,0.09918021,42530.0,42529.0,0.358947]
[1646348039509,0.001,42535.0,42529.0,0.358947]
[1646348039712,0.09919003,42534.0,42528.0,0.11701965]
[1646348039910,0.34168813,42529.0,42528.0,0.11701965]
[1646348040111,0.34168813,42529.0,42528.0,0.47596665]
[1646348040311,0.34168813,42529.0,42528.0,0.47696665]
[1646348041412,0.09919003,42529.0,42528.0,0.11801965]
[1646348041665,0.3889208,42534.0,42528.0,0.47596665]
[1646348042165,0.3889208,42534.0,42528.0,0.11701965]
[1646348042369,0.49111083,42534.0,42528.0,0.11701965]
[1646348042667,0.09919003,42533.0,42528.0,0.11701965]
[1646348042867,0.09919003,42532.0,42528.0,0.11701965]
[1646348043266,0.003,42534.0,42528.0,0.11701965]
[1646348043469,0.09919003,42533.0,42528.0,0.11701965]
[1646348043667,0.09919003,42532.0,42528.0,0.11701965]
[1646348043869,0.3889208,42535.0,42528.0,0.11701965]
[1646348043870,0.09919003,42531.0,42528.0,0.11701965]
[1646348044068,0.09919003,42530.0,42528.0,0.11701965]
[1646348044268,0.09919003,42529.0,42528.0,0.47596665]
[1646348044467,0.09919003,42529.0,42528.0,0.47696665]
[1646348044668,0.09919003,42529.0,42528.0,0.11801965]
[1646348044872,0.3889208,42535.0,42528.0,0.47696665]
[1646348045068,0.48811083,42535.0,42528.0,0.47696665]
[1646348045310,0.09919003,42534.0,42528.0,0.11801965]
[1646348045511,0.09919003,42533.0,42528.0,0.11801965]
[1646348045712,0.09919003,42532.0,42528.0,0.11701965]
[1646348045911,0.09919003,42531.0,42528.0,0.11701965]
[1646348046111,0.09919003,42530.0,42528.0,0.11701965]
[1646348046312,0.11188744,42529.0,42528.0,0.11801965]
[1646348046512,0.3889208,42535.0,42528.0,0.47696665]
[1646348046711,0.11188744,42534.0,42528.0,0.11801965]
[1646348046910,0.11188744,42533.0,42528.0,0.11801965]
[1646348047110,0.11188744,42532.0,42528.0,0.11801965]
[1646348047311,0.11188744,42531.0,42528.0,0.11801965]
[1646348047514,0.11188744,42530.0,42528.0,0.11801965]
[1646348047712,0.11188744,42529.0,42528.0,0.11701965]
[1646348047912,0.11188744,42529.0,42528.0,0.47596665]
[1646348048113,0.3889208,42536.0,42528.0,0.11701965]
[1646348048311,0.003,42534.0,42528.0,0.11801965]
[1646348048513,0.11188744,42533.0,42528.0,0.11801965]
[1646348049861,0.11188744,42533.0,42528.0,0.11701965]
[1646348050062,0.3889208,42536.0,42528.0,0.11701965]
[1646348050464,0.3889208,42536.0,42528.0,0.11801965]
[1646348051260,0.3889208,42536.0,42528.0,0.07519809]
[1646348051861,0.11188744,42537.0,42528.0,0.07519809]
[1646348051862,0.34171246,42529.0,42528.0,0.07419809]
[1646348052062,0.34171246,42529.0,42528.0,0.43314509]
[1646348052462,0.34471246,42529.0,42528.0,0.43314509]
[1646348053717,0.34171246,42529.0,42528.0,0.43314509]
[1646348054520,0.34471246,42529.0,42528.0,0.43314509]
[1646348056220,0.34171246,42529.0,42528.0,0.43314509]
[1646348056419,0.34471246,42529.0,42528.0,0.43314509]
[1646348057463,0.34471246,42529.0,42528.0,0.07419809]
[1646348057663,0.34171246,42529.0,42528.0,0.07419809]
[1646348058165,0.34171246,42529.0,42528.0,0.43314509]
[1646348058367,0.34471246,42529.0,42528.0,0.43314509]
[1646348058967,0.34471246,42529.0,42528.0,0.07419809]
[1646348059666,0.34171246,42529.0,42528.0,0.07419809]
[1646348060521,0.34471246,42529.0,42528.0,0.07419809]
[1646348061620,0.34171246,42529.0,42528.0,0.07419809]
[1646348062020,0.49002409,42536.0,42528.0,0.07419809]
[1646348062221,0.34172661,42529.0,42528.0,0.07419809]
[1646348062422,0.10410329,42529.0,42528.0,0.07419809]
[1646348063621,0.10110329,42529.0,42528.0,0.07419809]
[1646348063821,0.49002409,42536.0,42528.0,0.07419809]
[1646348064066,0.34173381,42529.0,42528.0,0.43314509]
[1646348065170,0.10110329,42531.0,42527.0,0.05883535]
[1646348065368,0.10110329,42530.0,42523.0,0.40922365]
[1646348065571,0.34176392,42525.0,42523.0,0.40922365]
[1646348065768,0.34176392,42525.0,42524.0,0.358947]
[1646348066569,0.34176392,42525.0,42524.0,0.361947]
[1646348067813,0.34176392,42525.0,42524.0,0.358947]
[1646348068414,0.34176392,42525.0,42524.0,0.360947]
[1646348069717,0.34176392,42525.0,42524.0,0.358947]
[1646348070516,0.34176392,42525.0,42524.0,0.361947]
[1646348071315,0.3411374,42525.0,42524.0,0.25020285]
[1646348071768,0.3411374,42525.0,42524.0,0.24720285]
[1646348072369,0.3411374,42525.0,42523.0,0.17652365]
[1646348072571,0.3431374,42525.0,42523.0,0.17652365]
[1646348073572,0.3431374,42525.0,42524.0,0.358978]
[1646348073772,0.3411374,42525.0,42524.0,0.358978]
[1646348074575,0.3411374,42525.0,42524.0,0.360978]
[1646348074778,0.11047293,42527.0,42524.0,0.360978]
[1646348074976,0.03525967,42528.0,42524.0,0.002]
[1646348075177,0.11046857,42527.0,42524.0,0.002]
[1646348075419,0.11046857,42527.0,42525.0,0.358978]
[1646348075818,0.11046857,42527.0,42523.0,0.17652365]
[1646348076022,0.29288472,42524.0,42523.0,0.17652365]
[1646348076220,0.11046857,42527.0,42523.0,0.53550165]
[1646348076421,0.03525967,42528.0,42523.0,0.17952365]
[1646348076620,0.29288351,42524.0,42523.0,0.53850165]
[1646348077720,0.12089636,42527.0,42523.0,0.53550165]
[1646348077920,0.12089636,42527.0,42523.0,0.17652365]
[1646348078220,0.54018823,42534.0,42523.0,0.17652365]
[1646348078221,0.34170018,42526.0,42523.0,0.17652365]
[1646348078420,0.34170018,42526.0,42524.0,0.358978]
[1646348078626,0.34170018,42526.0,42524.0,0.47666015]
[1646348079570,0.34170018,42526.0,42525.0,0.358978]
[1646348080466,0.34170018,42526.0,42525.0,0.360978]
[1646348081870,0.34170018,42526.0,42525.0,0.358978]
[1646348082471,0.34370018,42526.0,42525.0,0.358978]
[1646348082917,0.34370018,42526.0,42524.0,0.11768215]
[1646348083518,0.34370018,42526.0,42525.0,0.358978]
[1646348083718,0.34170018,42526.0,42525.0,0.358978]
[1646348084523,0.34370018,42526.0,42525.0,0.358978]
[1646348084919,0.34370018,42526.0,42524.0,0.11768215]
[1646348085520,0.11350656,42525.0,42524.0,0.11768215]
[1646348085722,0.34170452,42525.0,42524.0,0.47666015]
[1646348086579,0.34170452,42525.0,42524.0,0.11968215]
[1646348086974,0.11350445,42529.0,42524.0,0.47866015]
[1646348087174,0.34170198,42525.0,42524.0,0.11968215]
[1646348087374,0.34170198,42525.0,42524.0,0.47866015]
[1646348087774,0.34170198,42525.0,42524.0,0.47666015]
[1646348088473,0.34170198,42525.0,42524.0,0.47866015]
[1646348088675,0.04878,42532.0,42524.0,0.77866015]
[1646348088676,0.34170198,42526.0,42524.0,0.77866015]
[1646348088875,0.34170198,42526.0,42525.0,0.358978]
[1646348089277,0.34170198,42527.0,42525.0,0.658978]
[1646348089576,0.34170198,42527.0,42526.0,0.658978]
[1646348089777,0.52844823,42535.0,42527.0,0.358978]
[1646348089778,0.34170198,42528.0,42527.0,0.358978]
[1646348089981,0.2928462,42528.0,42527.0,0.658978]
[1646348090178,0.2928462,42529.0,42527.0,0.658978]
[1646348090423,0.2928462,42530.0,42529.0,0.358978]
[1646348090619,0.2928462,42530.0,42529.0,0.41780378]
[1646348090820,0.2928462,42531.0,42529.0,0.41780378]
[1646348091222,0.2928462,42531.0,42530.0,0.658978]
[1646348091420,0.2928462,42531.0,42530.0,0.37098]
[1646348091421,0.24400868,42531.0,42530.0,0.37098]
[1646348091623,0.34170198,42536.0,42533.0,0.51975]
[1646348091624,0.2928462,42536.0,42533.0,0.51975]
[1646348091822,0.2928462,42536.0,42534.0,0.71779321]
[1646348092022,0.2928462,42537.0,42536.0,0.358978]
[1646348092219,0.21867477,42544.0,42536.0,0.358978]
[1646348092220,0.2928462,42539.0,42536.0,0.58618885]
[1646348092419,0.2928462,42539.0,42536.0,0.60996885]
[1646348092620,0.2928462,42540.0,42536.0,0.61296885]
[1646348093219,0.34170198,42544.0,42536.0,1.33016885]
[1646348093220,0.2928462,42542.0,42536.0,1.33016885]
[1646348093422,0.3889208,42553.0,42541.0,0.441563]
[1646348093423,0.29266126,42547.0,42541.0,0.441563]
[1646348093621,0.29266126,42547.0,42545.0,0.02378]
[1646348093821,0.29266126,42547.0,42546.0,0.358886]
[1646348094071,0.29266126,42549.0,42546.0,0.658886]
[1646348094275,0.34170198,42552.0,42549.0,0.02378]
[1646348094576,0.13979039,42556.0,42551.0,0.23516338]
[1646348094577,0.34170198,42556.0,42551.0,0.23516338]
[1646348094782,0.34170198,42557.0,42552.0,0.358886]
[1646348094971,0.0999,42559.0,42553.0,0.28495964]
[1646348094972,0.34170198,42558.0,42553.0,0.28495964]
[1646348095174,0.34170198,42558.0,42554.0,0.382666]
[1646348095373,0.0999,42559.0,42555.0,0.1472]
[1646348095671,0.3,42571.0,42555.0,0.1472]
[1646348095672,0.34170198,42561.0,42556.0,0.59710691]
[1646348095872,0.34170198,42564.0,42558.0,0.358886]
[1646348096071,0.34170198,42564.0,42560.0,0.358886]
[1646348096272,0.34170198,42565.0,42560.0,0.417665]
[1646348096473,0.0999,42561.0,42560.0,0.417665]
[1646348096873,0.0999,42561.0,42560.0,0.358886]
[1646348097274,0.0999,42561.0,42560.0,0.61919385]
[1646348097474,0.08607752,42578.0,42560.0,0.61919385]
[1646348097475,0.34170198,42567.0,42560.0,0.61919385]
[1646348097674,0.34170198,42568.0,42561.0,0.0472]
[1646348097926,0.34170198,42572.0,42562.0,0.41765836]
[1646348098125,0.34170198,42572.0,42564.0,0.358886]
[1646348098524,0.34170198,42572.0,42566.0,0.358886]
[1646348098724,0.34170198,42572.0,42566.0,0.32392563]
[1646348098924,0.0432,42567.0,42566.0,0.32392563]
[1646348099124,0.0432,42567.0,42566.0,0.62392563]
[1646348099333,0.34170198,42573.0,42566.0,0.62392563]
[1646348099531,0.34170198,42574.0,42566.0,0.67112563]
[1646348099925,0.34170198,42576.0,42566.0,0.67112563]
[1646348100125,0.34170198,42577.0,42566.0,0.67112563]
[1646348100528,0.015,42580.0,42566.0,0.67412563]
[1646348100529,0.34170198,42578.0,42566.0,0.67412563]
[1646348100926,0.34170198,42578.0,42567.0,0.05877811]
[1646348101125,0.34170198,42578.0,42568.0,0.406086]
[1646348101578,0.34170198,42578.0,42568.0,0.464862]
[1646348102371,0.29192901,42575.0,42568.0,0.464862]
[1646348102773,0.29192901,42576.0,42568.0,0.464862]
[1646348102973,0.29192901,42578.0,42568.0,0.41953164]
[1646348103774,0.29192901,42578.0,42568.0,0.47829764]
[1646348104375,0.29192901,42579.0,42568.0,0.47829764]
[1646348104576,0.29192901,42579.0,42568.0,0.48129764]
[1646348104778,0.29192901,42578.0,42568.0,0.48129764]
[1646348104977,0.28692901,42580.0,42568.0,0.48129764]
[1646348105815,0.28692901,42580.0,42568.0,0.47829764]
[1646348106015,0.28692901,42580.0,42568.0,0.41953164]
[1646348106913,0.02,42581.0,42568.0,0.41953164]
[1646348108613,0.02,42581.0,42568.0,0.42353164]
[1646348109874,0.02,42581.0,42568.0,0.41953164]
[1646348113624,0.02,42581.0,42569.0,0.058764]
[1646348113823,0.02,42581.0,42571.0,0.117533]
[1646348114026,0.02,42581.0,42574.0,0.058767]
[1646348114225,0.02,42581.0,42575.0,0.37292093]
[1646348116666,0.02,42581.0,42575.0,0.31715393]
[1646348117867,0.02,42581.0,42575.0,0.31415393]
[1646348118067,0.02,42581.0,42573.0,0.117534]
[1646348118269,0.02,42581.0,42566.0,0.2427]
[1646348118270,0.02378,42577.0,42566.0,0.2427]
[1646348118469,0.02378,42577.0,42557.0,0.520091]
[1646348118470,0.358721,42574.0,42557.0,0.058791]
[1646348118670,0.358721,42574.0,42556.0,0.23509753]
[1646348118671,0.382501,42568.0,42556.0,0.23509753]
[1646348118868,0.15,42569.0,42551.0,0.04021]
[1646348118869,0.02378,42565.0,42551.0,0.04021]
[1646348119068,0.02378,42561.0,42551.0,0.04021]
[1646348119270,0.358721,42560.0,42551.0,0.04021]
[1646348119667,0.382501,42560.0,42551.0,0.04021]
[1646348119868,0.425,42561.0,42551.0,0.04021]
[1646348119869,0.382501,42556.0,42551.0,0.04021]
[1646348120070,0.15,42557.0,42551.0,0.00049698]
[1646348120071,0.358721,42554.0,42551.0,0.00049698]
[1646348120333,0.508721,42552.0,42551.0,0.00049698]
[1646348120635,0.867661,42552.0,42551.0,0.00049698]
[1646348120828,0.867661,42552.0,42532.0,0.0011]
[1646348120829,0.01308524,42550.0,42532.0,0.0011]
[1646348121033,0.17378,42538.0,42532.0,0.0011]
[1646348121229,0.658721,42537.0,42532.0,0.0011]
[1646348121428,0.717577,42537.0,42532.0,0.0011]
[1646348121628,0.358721,42535.0,42532.0,0.0011]
[1646348121828,0.55,42534.0,42532.0,0.0011]
[1646348122030,0.908721,42534.0,42532.0,0.0011]
[1646348122630,0.923461,42534.0,42532.0,0.0011]
[1646348123032,1.06798686,42534.0,42532.0,0.0011]
[1646348123429,1.11518686,42534.0,42532.0,0.0011]
[1646348123635,1.11518686,42534.0,42530.0,0.001]
[1646348123636,0.11720656,42532.0,42530.0,0.001]
[1646348123832,0.9252544,42531.0,42530.0,0.001]
[1646348124272,1.18152026,42531.0,42530.0,0.00032353]
[1646348124472,1.19326026,42531.0,42530.0,0.00032353]
[1646348124671,1.19626026,42531.0,42530.0,0.00032353]
[1646348124874,0.00089235,42516.0,42510.0,0.31615494]
[1646348125072,0.358721,42515.0,42503.0,0.50827234]
[1646348125674,0.383721,42515.0,42503.0,0.50827234]
[1646348126274,0.383721,42515.0,42507.0,0.0598677]
[1646348126775,0.383721,42515.0,42507.0,0.001]
[1646348127277,0.383721,42515.0,42503.0,0.51257234]
[1646348127476,0.025,42515.0,42503.0,0.51257234]
[1646348127675,0.00089235,42516.0,42503.0,0.51257234]
[1646348127926,0.00089235,42516.0,42503.0,0.50757234]
[1646348128729,0.00089235,42516.0,42504.0,0.417585]
[1646348129331,0.00089235,42516.0,42504.0,0.058864]
[1646348129731,0.00089235,42516.0,42505.0,0.09122595]
[1646348129931,0.00089235,42516.0,42509.0,0.058857]
[1646348130837,0.00089235,42516.0,42510.0,0.500201]
[1646348131033,2.35e-06,42516.0,42512.0,1.099701]
[1646348131233,2.35e-06,42516.0,42514.0,0.75389557]
[1646348131437,0.36462034,42531.0,42513.0,0.66907875]
[1646348131438,0.15626586,42531.0,42517.0,0.74098]
[1646348131685,0.11720656,42532.0,42524.0,0.14999999]
[1646348131885,0.11720656,42532.0,42526.0,0.02378]
[1646348132085,0.11720656,42532.0,42527.0,0.28873912]
[1646348132286,0.11720656,42532.0,42528.0,0.0472]
[1646348132487,0.11720656,42532.0,42529.0,0.358721]
[1646348132685,0.11720656,42532.0,42530.0,0.0472]
[1646348132885,0.11720656,42532.0,42531.0,0.358935]
[1646348133588,0.11720656,42532.0,42531.0,0.406135]
[1646348134585,0.11720656,42532.0,42531.0,0.413135]
[1646348135922,0.11720656,42532.0,42531.0,0.406135]
[1646348136322,0.11720656,42532.0,42531.0,0.358935]
[1646348140772,0.01174,42545.0,42530.0,0.17645228]
[1646348140975,0.01174,42545.0,42535.0,0.05882199]
[1646348141970,0.01174,42547.0,42535.0,0.05882199]
[1646348143325,0.01174,42547.0,42536.0,0.058821]
[1646348143625,0.01174,42547.0,42539.0,0.05882047]
[1646348144028,0.358935,42546.0,42539.0,0.05882047]
[1646348144225,0.02378,42548.0,42539.0,0.05882047]
[1646348144226,0.358935,42547.0,42539.0,0.05882047]
[1646348145427,0.03571082,42550.0,42539.0,0.05882047]
[1646348145629,0.02378,42548.0,42539.0,0.05882047]
[1646348145826,0.358935,42547.0,42539.0,0.05882047]
[1646348146228,0.02378,42546.0,42539.0,0.05882047]
[1646348146675,0.02378,42546.0,42539.0,0.06082047]
[1646348147274,0.03543082,42550.0,42539.0,0.06082047]
[1646348147474,0.0235,42548.0,42539.0,0.06082047]
[1646348148076,0.0235,42548.0,42539.0,0.05882047]
[1646348148477,0.382435,42549.0,42539.0,0.05882047]
[1646348148676,0.0235,42549.0,42539.0,0.06182047]
[1646348149578,0.358935,42548.0,42539.0,0.06182047]
[1646348149779,0.382435,42549.0,42539.0,0.06182047]
[1646348149977,0.0235,42549.0,42539.0,0.06182047]
[1646348150622,0.0235,42549.0,42539.0,0.06482047]
[1646348150820,0.0235,42548.0,42539.0,0.006]
[1646348151024,0.0235,42548.0,42541.0,0.05881605]
[1646348151222,0.358935,42546.0,42541.0,0.05881605]
[1646348151522,0.00019082,42550.0,42541.0,0.05233445]
[1646348151723,0.358935,42549.0,42541.0,0.05233445]
[1646348151921,0.382435,42549.0,42541.0,0.05233445]
[1646348152723,0.382435,42549.0,42541.0,0.05433445]
[1646348152922,0.382435,42549.0,42541.0,0.11314945]
[1646348153323,0.382435,42549.0,42541.0,0.05433445]
[1646348153523,0.358935,42549.0,42541.0,0.05433445]
[1646348153926,0.358935,42549.0,42541.0,0.05233445]
[1646348154773,0.358935,42549.0,42541.0,0.05433445]
[1646348155976,0.00019082,42550.0,42541.0,0.05233445]
[1646348156378,0.358935,42549.0,42541.0,0.05233445]
[1646348156577,0.358935,42549.0,42538.0,0.17645188]
[1646348156776,0.00019082,42550.0,42538.0,0.17645188]
[1646348157379,0.358935,42549.0,42538.0,0.17645188]
[1646348157830,0.00019082,42550.0,42538.0,0.17645188]
[1646348158231,0.358935,42549.0,42541.0,0.05881585]
[1646348159335,0.00019082,42550.0,42538.0,0.18345188]
[1646348159934,0.00019082,42550.0,42538.0,0.11763288]
[1646348160135,0.358935,42549.0,42538.0,0.11763288]
[1646348160334,0.00019082,42550.0,42538.0,0.11763288]
[1646348161794,0.358935,42549.0,42538.0,0.11763288]
[1646348161994,0.00019082,42550.0,42538.0,0.11763288]
[1646348162198,0.358935,42549.0,42538.0,0.11763288]
[1646348162593,0.00019082,42550.0,42538.0,0.11763288]
[1646348162793,0.2916155,42548.0,42538.0,0.11763288]
[1646348163394,0.00019082,42550.0,42540.0,0.0588163]
[1646348163395,0.2916155,42549.0,42540.0,0.0588163]
[1646348163593,0.2916155,42549.0,42541.0,0.058814]
[1646348165197,0.00019082,42550.0,42540.0,0.0588163]
[1646348165198,0.29180632,42550.0,42540.0,0.0588163]
[1646348165826,0.2916155,42549.0,42540.0,0.0588163]
[1646348166024,0.29180632,42550.0,42540.0,0.0588163]
[1646348166426,0.358935,42549.0,42540.0,0.0588163]
[1646348167027,0.29180632,42550.0,42540.0,0.0588163]
[1646348167428,0.00019082,42550.0,42540.0,0.0588163]
[1646348167828,0.00019082,42550.0,42542.0,0.058813]
[1646348168227,0.29180632,42550.0,42542.0,0.058813]
[1646348168626,0.00019082,42550.0,42542.0,0.058813]
[1646348168827,0.00019082,42550.0,42542.0,0.060813]
[1646348169677,0.00019082,42550.0,42542.0,0.002]
[1646348170080,0.00019082,42550.0,42541.0,0.058812]
[1646348170681,0.00019082,42550.0,42542.0,0.7635429]
[1646348171380,0.00019082,42550.0,42545.0,0.0235]
[1646348171581,0.00019082,42550.0,42546.0,0.70013227]
[1646348171781,0.00019082,42550.0,42547.0,0.058799]
[1646348171981,0.00019082,42550.0,42548.0,0.406135]
[1646348172823,0.00019082,42550.0,42548.0,0.409135]
[1646348174024,0.00019082,42550.0,42548.0,0.406135]
[1646348174723,0.00019082,42550.0,42548.0,0.409135]
[1646348175526,0.00019082,42550.0,42548.0,0.58549823]
[1646348175924,0.00019082,42550.0,42548.0,0.58249823]
[1646348176784,0.00019082,42550.0,42548.0,0.58549823]
[1646348177984,0.00019082,42550.0,42548.0,0.58249823]
[1646348185979,0.00019082,42550.0,42549.0,0.3]
[1646348186181,0.00019082,42550.0,42548.0,0.17636323]
[1646348186378,0.00019082,42550.0,42549.0,0.358935]
[1646348186779,0.00019082,42550.0,42548.0,0.17636323]
[1646348186981,0.00019082,42550.0,42549.0,0.358935]
[1646348187181,0.00019082,42550.0,42548.0,0.17636323]
[1646348188426,0.00019082,42550.0,42544.0,0.7856]
[1646348188628,0.00019082,42550.0,42543.0,0.2387]
[1646348188825,0.00019082,42550.0,42543.0,0.003]
[1646348188826,0.358935,42549.0,42543.0,0.003]
[1646348189026,0.382435,42549.0,42543.0,0.003]
[1646348189428,0.29252402,42546.0,42543.0,0.003]
[1646348189625,0.65145902,42545.0,42543.0,0.003]
[1646348190025,0.382435,42545.0,42540.0,0.4494]
[1646348190226,0.35345198,42546.0,42532.0,0.84442802]
[1646348190227,0.29256371,42542.0,42532.0,0.84442802]
[1646348190428,0.29256371,42542.0,42531.0,0.4494]
[1646348190429,0.382435,42541.0,42531.0,0.4494]
[1646348190632,0.382435,42541.0,42523.0,0.4651]
[1646348190633,0.31606371,42537.0,42523.0,0.4651]
[1646348190829,0.31606371,42535.0,42527.0,0.003]
[1646348191026,0.382435,42534.0,42527.0,0.003]
[1646348191330,0.67499871,42534.0,42527.0,0.003]
[1646348191980,0.382435,42534.0,42527.0,0.003]
[1646348192178,0.382435,42534.0,42521.0,0.4494]
[1646348192379,0.31606371,42534.0,42521.0,0.4494]
[1646348192783,0.13675,42536.0,42521.0,0.4494]
[1646348192784,0.0235,42532.0,42521.0,0.4494]
[1646348194882,0.0235,42532.0,42521.0,0.4544]
[1646348195083,0.0235,42532.0,42521.0,0.45430686]
[1646348195935,0.0235,42530.0,42521.0,0.005]
[1646348196127,0.0235,42529.0,42518.0,0.3]
[1646348196326,0.0235,42529.0,42517.0,0.4494]
[1646348196527,0.0235,42529.0,42519.0,0.05884505]
[1646348197128,0.03525,42532.0,42519.0,0.05884505]
[1646348197328,0.0235,42530.0,42519.0,0.05884505]
[1646348198329,0.0235,42532.0,42519.0,0.05884505]
[1646348198531,0.0235,42532.0,42519.0,0.091213]
[1646348199386,0.358935,42531.0,42519.0,0.091213]
[1646348199680,0.0235,42530.0,42519.0,0.091213]
[1646348200078,0.03525,42534.0,42519.0,0.091213]
[1646348200280,0.0235,42532.0,42519.0,0.150054]
[1646348200479,0.0235,42532.0,42522.0,0.058839]
[1646348200681,0.01175,42534.0,42523.0,0.33236795]
[1646348201481,0.01174,42535.0,42523.0,0.33236795]
[1646348201680,0.01174,42535.0,42526.0,0.05882783]
[1646348202284,0.358935,42533.0,42526.0,0.05882783]
[1646348202482,0.01174,42535.0,42526.0,0.05882783]
[1646348202682,0.358935,42534.0,42526.0,0.05882783]
[1646348203328,0.358935,42535.0,42526.0,0.05882783]
[1646348203733,0.1,42534.0,42526.0,0.05882783]
[1646348204432,0.025,42536.0,42527.0,0.717764]
[1646348204634,0.29256371,42539.0,42527.0,0.717764]
[1646348204635,0.025,42539.0,42530.0,0.05882014]
[1646348204831,0.025,42539.0,42531.0,0.3]
[1646348205032,0.29256371,42545.0,42531.0,0.3]
[1646348205233,0.47283392,42545.0,42529.0,0.358935]
[1646348205432,0.025,42545.0,42529.0,0.0472]
[1646348205631,0.025,42545.0,42530.0,0.358935]
[1646348205834,0.025,42545.0,42532.0,0.358935]
[1646348206131,0.29256371,42547.0,42531.0,0.3]
[1646348206335,0.29256371,42548.0,42532.0,0.464955]
[1646348206576,0.18046103,42550.0,42534.0,0.0235]
[1646348206577,0.29256371,42549.0,42534.0,0.0235]
[1646348206779,0.15546103,42550.0,42535.0,0.382435]
[1646348206977,0.15546103,42550.0,42536.0,0.358935]
[1646348207178,0.15546103,42550.0,42537.0,0.3]
[1646348207380,0.00019082,42550.0,42540.0,0.0235]
[1646348207580,0.00019082,42550.0,42543.0,0.47653156]
[1646348207779,0.00019082,42550.0,42545.0,0.358935]
[1646348207977,0.00019082,42550.0,42546.0,0.0472]
[1646348208180,0.00019082,42550.0,42547.0,0.3]
[1646348208379,0.00019082,42550.0,42547.0,0.358796]
[1646348208580,0.00019082,42550.0,42548.0,0.3]
[1646348208781,0.00019082,42550.0,42547.0,0.062796]
[1646348208983,0.00019082,42550.0,42548.0,0.3]
[1646348209181,0.00019082,42550.0,42549.0,0.358935]
[1646348210734,0.00019082,42550.0,42548.0,0.22357808]
[1646348211030,0.00019082,42550.0,42549.0,0.003]
[1646348211632,0.00019082,42550.0,42548.0,0.19332319]
[1646348212432,0.00019082,42550.0,42548.0,0.164784]
[1646348214184,0.00019082,42550.0,42542.0,0.11761]
[1646348214380,0.00019082,42550.0,42541.0,0.358935]
[1646348214581,0.00019082,42550.0,42541.0,0.3]
[1646348214781,0.00019082,42550.0,42539.0,0.358935]
[1646348215184,0.00019082,42550.0,42539.0,0.476554]
[1646348217583,0.15019082,42550.0,42541.0,0.058804]
[1646348217830,0.00019082,42550.0,42542.0,0.658935]
[1646348218830,0.00019082,42550.0,42543.0,0.358935]
[1646348220234,0.00019082,42550.0,42542.0,0.499902]
[1646348220533,0.00019082,42550.0,42543.0,0.358935]
[1646348221987,0.01175,42557.0,42543.0,0.7]
[1646348222186,0.25,42556.0,42543.0,0.7]
[1646348222388,0.14519082,42550.0,42543.0,0.7]
[1646348222585,0.14519082,42550.0,42542.0,0.476402]
[1646348222985,0.14519082,42550.0,42543.0,0.003]
[1646348223386,0.14519082,42550.0,42544.0,0.358935]
[1646348224286,0.14519082,42550.0,42542.0,0.476402]
[1646348224491,0.14519082,42550.0,42543.0,0.358935]
[1646348224685,0.14519082,42550.0,42542.0,0.476402]
[1646348225338,0.14519082,42555.0,42546.0,0.117598]
[1646348226843,0.14519082,42555.0,42546.0,0.120598]
[1646348228243,0.43775453,42560.0,42546.0,0.117598]
[1646348228543,0.14519082,42560.0,42546.0,0.117598]
[1646348229583,0.43775453,42560.0,42546.0,0.117598]
[1646348229880,0.14519082,42560.0,42546.0,0.117598]
[1646348230881,0.14519082,42560.0,42546.0,0.120598]
[1646348232090,0.14519082,42560.0,42546.0,0.117598]
[1646348233131,0.1451248,42560.0,42546.0,0.117598]
[1646348233831,0.1,42561.0,42546.0,0.117598]
[1646348234134,0.1451248,42559.0,42546.0,0.117598]
[1646348235231,0.43768851,42559.0,42546.0,0.117598]
[1646348235731,0.43768851,42559.0,42543.0,0.141098]
[1646348236879,0.29256371,42558.0,42544.0,0.3]
[1646348237280,0.43768851,42559.0,42544.0,0.3]
[1646348238282,0.43768851,42559.0,42546.0,0.058798]
[1646348238880,0.29256371,42558.0,42546.0,0.058798]
[1646348239481,0.43768851,42559.0,42546.0,0.058798]
[1646348239882,0.29256371,42558.0,42546.0,0.058798]
[1646348240930,0.29256371,42558.0,42546.0,0.061798]
[1646348241429,0.1451248,42554.0,42546.0,0.061798]
[1646348242232,0.1451248,42554.0,42543.0,0.117598]
[1646348243135,0.29256371,42554.0,42539.0,0.646011]
[1646348243332,0.29256371,42554.0,42539.0,0.058811]
[1646348243531,0.1451248,42549.0,42539.0,0.058811]
[1646348243733,0.058816,42553.0,42538.0,0.01575]
[1646348243937,0.1451248,42546.0,42538.0,0.01575]
[1646348244191,0.1451248,42543.0,42538.0,0.004]
[1646348244388,0.1451248,42545.0,42538.0,0.004]
[1646348244892,0.1471248,42545.0,42533.0,0.302]
[1646348245990,0.43968851,42545.0,42533.0,0.302]
[1646348246191,0.43768851,42545.0,42533.0,0.3]
[1646348247391,0.43768851,42545.0,42533.0,0.35882]
[1646348248865,0.43768851,42545.0,42533.0,0.39495624]
[1646348249066,0.29256371,42542.0,42533.0,0.39495624]
[1646348249465,0.29256371,42542.0,42533.0,0.09495624]
[1646348249664,0.29256371,42542.0,42533.0,0.39495624]
[1646348250068,0.29256371,42542.0,42534.0,0.358935]
[1646348250371,0.29256371,42543.0,42533.0,0.39495624]
[1646348250967,0.29256371,42543.0,42533.0,0.39795624]
[1646348251169,0.29256371,42544.0,42533.0,0.39795624]
[1646348251994,0.43768851,42545.0,42533.0,0.39795624]
[1646348252295,0.43768851,42545.0,42533.0,0.09495624]